Cogmind - Beta 13 @@@ ROGUE MODE // 2024.04.01 @ 19:00:28 Player: Olafz Result: Destroyed by Y-45 Defender with Heavy Assault Rifle Performance ------------- Evolutions (1) 500 Regions Visited (2) 400 Robots Destroyed (15) 75 Value Destroyed (359) 359 Prototype IDs (3) 60 Alien Tech Used (0) 0 Bonus (8) 8 TOTAL SCORE: 1402 Bonus ------- High Alert Combat Kills 8 Cogmind --------- Core Integrity 0/400 Matter 300/300 Energy 85/100 System Corruption 0% Temperature Cool (9) Movement Core (150) Ox2 Location -9/Materials Parts ------- > --- POWER (1) -------- (None) > --- PROPULSION (2) --- (None) > --- UTILITY (4) ------ Small Storage Unit Visual Processing Unit Improved Targeting Computer > --- WEAPON (2) ------- Precision Beam Rifle > --- INVENTORY (8) ---- Improved Hover Unit Improved Hover Unit Improved Hover Unit Visual Processing Unit Spread Laser Precision Beam Rifle Peak State ------------ > --- POWER ------------ (None) > --- PROPULSION ------- Flight Unit Flight Unit > --- UTILITY ---------- Small Storage Unit Visual Processing Unit > --- WEAPON ----------- Precision Beam Rifle Precision Beam Rifle > --- INVENTORY -------- Improved Hover Unit Improved Hover Unit Improved Hover Unit Visual Processing Unit Light Armor Plating Spread Laser Light Cannon [Rating: 14] Favorites ----------- Power Ion Engine Engine Ion Engine Propulsion Aluminum Leg Leg Aluminum Leg Wheel Armored Wheel Flight Unit Flight Unit Utility Small Storage Unit Device Improved Terrain Scanner Storage Small Storage Unit Processor Visual Processing Unit Protection Light Armor Plating Weapon Assault Rifle Energy Gun Precision Beam Rifle Ballistic Gun Assault Rifle Special Melee Weapon Datajack Build | -11 -10 -9 ------- Run | Yrd Mat Mat Slots Evolved 2 | . . 2 Power . | . . . Propulsion . | . . . Utility 2 | . . 2 Weapon . | . . . Parts Attached 24 | 7 5 12 Power 2 | 1 . 1 Engine 2 | 1 . 1 Core . | . . . Reactor . | . . . Propulsion 9 | 2 3 4 Treads . | . . . Leg 5 | 2 3 . Wheel 2 | . . 2 Hover . | . . . Flight 2 | . . 2 Utility 6 | 2 . 4 Device 2 | 1 . 1 Storage 1 | 1 . . Processor 2 | . . 2 Hackware . | . . . Protection 1 | . . 1 Artifact . | . . . Weapon 7 | 2 2 3 Energy Gun 3 | . . 3 Energy Cannon . | . . . Ballistic Gun 3 | 2 1 . Ballistic Cannon . | . . . Launcher . | . . . Special Weapon . | . . . Impact Weapon . | . . . Slashing Weapon . | . . . Piercing Weapon . | . . . Special Melee Weapon 1 | . 1 . Unidentified Prototypes 1 | . . 1 Parts Lost 10 | . 4 6 Power 2 | . 1 1 Propulsion 3 | . . 3 Utility 2 | . 1 1 Weapon 3 | . 2 1 Highest Loss Streak 3 | . 3 3 To Critical Strikes . | . . . Average Slot Usage (%) 70 | . 87 55 Engine 6 | . 12 2 Leg 14 | . 28 3 Wheel 2 | . . 4 Flight 5 | . . 10 Device 5 | . 10 . Storage 12 | . 14 11 Processor 6 | . . 12 Protection 1 | . . 3 Energy Gun 1 | . . 3 Ballistic Gun 8 | . 15 2 Special Melee Weapon 2 | . 5 . Naked Turns . | . . . Heaviest Build 15 | 15 15 10 Greatest Support 24 | 20 20 24 Greatest Overweight (x) 3 | . . 3 Average Overweight (x) . | . . . Largest Inventory Capacity 8 | 8 8 8 Average Capacity 7 | 7 8 8 Most Carried 7 | 1 5 7 Average Carried 2 | . 2 3 Final Capacity 8 | 8 8 8 Final Carried 6 | 1 4 6 Class Distribution -------------------- 100% | Mutant Dominant Class ---------------- Mutant | -10/Materials Mutant | -9/Materials Resources | -11 -10 -9 ----------- Run | Yrd Mat Mat Matter Collected 583 | 225 185 173 Remotely . | . . . Salvage Created 529 | 109 227 193 Parts 38 | 8 13 17 Haulers Intercepted . | . . . Recyclers Shooed . | . . . Parts Field Recycled . | . . . Retrieved Matter . | . . . Parts Self-Destructed . | . . . Prevented . | . . . Kills | -11 -10 -9 ------- Run | Yrd Mat Mat Combat Hostiles Destroyed 10 | . 5 5 Guns 9 | . 5 4 AOE 1 | . . 1 Classes Destroyed 7 | 2 1 4 Builder 1 | . . 1 Tunneler 2 | 2 . . Recycler 1 | 1 . . Watcher 1 | . . 1 Swarmer 3 | . . 3 Grunt 6 | . 5 1 Sentry 1 | . . 1 Best Kill Streak 3 | 3 2 3 Combat Bots Only 2 | . 2 2 Max Kills in Single Turn 1 | 1 1 1 Gunslinging . | . . . Exploded 1 | . . 1 Melee . | . . . Uniques/NPCs Destroyed . | . . . Combat | -11 -10 -9 -------- Run | Yrd Mat Mat Hostile Shots Fired 188 | . 73 115 Missed 60 | . 27 33 Damage Taken 1592 | . 636 956 Core 542 | . 142 400 Absorbed by Shields . | . . . Core Remaining (%) 71 | 100 43 . Volleys Fired 78 | 7 50 21 Largest 2 | 2 1 1 Hottest 61 | 40 20 61 Shots Fired 85 | 14 50 21 Gun 85 | 14 50 21 Cannon . | . . . Launcher . | . . . Special . | . . . Kinetic 68 | 14 50 4 Thermal 5 | . . 5 Explosive . | . . . Electromagnetic 12 | . . 12 Robot Hit Streak 11 | 3 9 11 Robot Miss Streak 7 | 1 7 2 Penetration Max . | . . . Secondary Targets . | . . . Shots Hit Robots 58 | 9 33 16 Core Hits 25 | 4 11 10 Critical Kills . | . . . Critical Parts Destroyed 1 | . 1 . Critical Strikes 2 | . 1 1 Burn 1 | . . 1 Destroy 1 | . 1 . Melee Attacks . | . . . Impact . | . . . Slashing . | . . . Piercing . | . . . Sneak Attacks . | . . . Combat Hostiles . | . . . Follow-up Attacks . | . . . Damage Inflicted 907 | 141 413 353 Guns 782 | 141 413 228 Cannons . | . . . Explosions 95 | . . 95 Melee . | . . . Ramming 30 | . . 30 Kinetic 593 | 141 413 39 Thermal 178 | . . 178 Explosive . | . . . Electromagnetic 106 | . . 106 Impact . | . . . Slashing . | . . . Piercing . | . . . Highest Corruption . | . . . Average Corruption . | . . . Corruption Purged . | . . . Corruption Blocked . | . . . Overload Shots . | . . . Overflow Damage . | . . . Projectiles . | . . . Explosions . | . . . Melee . | . . . Knockbacks . | . . . Impact . | . . . Kinetic . | . . . Secondary . | . . . Self-Inflicted Damage 52 | . . 52 Shots 1 | . . 1 Rammed 14 | . . 14 Targets Rammed 14 | . . 14 Kicked . | . . . Crushed . | . . . Highest Temperature 49 | . 12 49 Average Temperature 13 | . 6 14 Received Heat Transfer 594 | . 381 213 Siege Activations . | . . . Robots Corrupted . | . . . Combat Hostiles . | . . . Parts Fried . | . . . Impact Corruptions . | . . . Robots Melted . | . . . Combat Hostiles . | . . . Parts Melted 2 | . . 2 Heat Transferred 309 | . . 309 Parts Sabotaged . | . . . Parts Stolen . | . . . Parts Stripped . | . . . Power Chain Reactions 2 | . . 2 Alert | -11 -10 -9 ------- Run | Yrd Mat Mat Peak Influence 499 | 15 99 499 Initial 41 | . 9 41 Average 123 | 4 62 219 Maximum Alert Level 2 | . . 2 Low Security (%) 82 | 100 100 61 Level 1 5 | . . 12 Level 2 11 | . . 26 Level 3 . | . . . Level 4 . | . . . Level 5 . | . . . High Security . | . . . Max Security . | . . . Squads Dispatched 1 | . . 1 Investigation . | . . . Extermination . | . . . Reinforcement 1 | . . 1 Assault . | . . . Garrison . | . . . Intercept . | . . . Searches Triggered . | . . . Construction Impeded . | . . . Haulers Reinforced . | . . . Active Scanning Responses . | . . . Cargo Convoy Interrupts . | . . . Stealth | -11 -10 -9 --------- Run | Yrd Mat Mat Distress Signals 1 | . . 1 Communications Jammed . | . . . Distress Signals . | . . . Times Spotted 39 | . 11 28 Peak Tracking Total 16 | . 5 16 Tactical Retreats 5 | . . 5 Traps | -11 -10 -9 ------- Run | Yrd Mat Mat Traps Triggered . | . . . Indirectly . | . . . Trap Hack Attempts . | . . . Triggered . | . . . Disarmed . | . . . Reprogrammed . | . . . Reused . | . . . Traps Extracted . | . . . Installed . | . . . Triggered . | . . . Machines | -11 -10 -9 ---------- Run | Yrd Mat Mat Machines Disabled . | . . . Max in Single Turn . | . . . Machines Repaired . | . . . Machines Dismantled . | . . . Machines Sabotaged . | . . . Overloaded Fab Kills . | . . . Hacking | -11 -10 -9 --------- Run | Yrd Mat Mat Machines Accessed 4 | . 1 3 Terminals 2 | . . 2 Fabricators . | . . . Repair Stations . | . . . Recycling Units 1 | . 1 . Scanalyzers 1 | . . 1 Garrison Access . | . . . Total Hacks 9 | . 1 8 Successful 4 | . 1 3 Failed 5 | . . 5 Catastrophic . | . . . Database Lockouts . | . . . Manual 3 | . . 3 Terminals 6 | . . 6 Fabricators . | . . . Repair Stations . | . . . Recycling Units 1 | . 1 . Scanalyzers 2 | . . 2 Garrison Access . | . . . Terminal Hacks 1 | . . 1 Prototype ID Bank 1 | . . 1 Fabricator Hacks . | . . . Repair Station Hacks . | . . . Recycling Unit Hacks 1 | . 1 . Report Inventory 1 | . 1 . Scanalyzer 2 | . . 2 Insert Component 1 | . . 1 Analyze 1 | . . 1 Garrison Access Hacks . | . . . Unauthorized Hacks . | . . . Terminals . | . . . Fabricators . | . . . Repair Stations . | . . . Recycling Units . | . . . Scanalyzers . | . . . Garrison Access . | . . . Data Cores Recovered . | . . . Used . | . . . Hacking Detections 2 | . . 2 Full Trace Events . | . . . Feedback Events . | . . . Feedback Blocked . | . . . Robot Schematics Acquired . | . . . Robots Built . | . . . Authchips . | . . . Time . | . . . Total Robot Build Rating . | . . . Part Schematics Acquired 1 | . . 1 Parts Built . | . . . Authchips . | . . . Time . | . . . Total Part Build Rating . | . . . Parts Repaired . | . . . Time . | . . . Parts Recycled . | . . . Recycled Matter . | . . . Retrieved Matter . | . . . Retrieved Components . | . . . Parts Scanalyzed 1 | . . 1 Part Schematics Acquired 1 | . . 1 Parts Damaged . | . . . Bothacking | -11 -10 -9 ------------ Run | Yrd Mat Mat Used RIF Installer . | . . . Robots Hacked . | . . . Non-combat . | . . . Combat . | . . . Robot Hacks Applied . | . . . Relay Couplers Released . | . . . Fabnet Peak Effective % . | . . . Robots Rewired . | . . . Allies Hacked . | . . . Hacks Repelled . | . . . Allies | -11 -10 -9 -------- Run | Yrd Mat Mat Total Allies . | . . . Largest Group . | . . . Highest-Rated Group . | . . . Highest-Rated Ally . | . . . Total Orders . | . . . Ally Attacks . | . . . Total Damage . | . . . Kills . | . . . Allies Corrupted . | . . . Allies Melted . | . . . Intel | -11 -10 -9 ------- Run | Yrd Mat Mat Robot Analysis Total . | . . . Derelict Logs Recovered . | . . . Drone Launches . | . . . Drone Recoveries . | . . . Exploration | -11 -10 -9 ------------- Run | Yrd Mat Mat Turns Passed 749 | 122 293 334 Spaces Moved 692 | 81 155 456 Core 25 | 10 . 15 Treads . | . . . Legs 273 | 71 155 47 Wheels 32 | . . 32 Hover . | . . . Flight 362 | . . 362 Fastest Speed 37 | 50 120 37 Average Speed 74 | 111 120 53 Slowest Speed 200 | 120 120 200 Overloaded Moves . | . . . Propulsion Burnouts . | . . . Robots Hopped 3 | . . 3 Cave-ins Triggered . | . . . Exploration Rate (%) 36 | 4 33 72 Regions Visited 2 Branch Regions . Pre-discovered Areas . | . . . Known Exits Taken . | . . . Unknown Exits Taken 2 | 1 1 . Scrap Searched . | . . . Spaces Dug . | . . . Terrain Destroyed 3 | . . 3 Melee . | . . . Projectile . | . . . AOE 3 | . . 3 Terrain Rammed . | . . . Walls Destroyed . | . . . Machines Disabled . | . . . Actions | -11 -10 -9 --------- Run | Yrd Mat Mat Total 833 | 95 210 528 Wait . | . . . Move 684 | 80 154 450 Hop 3 | . . 3 Pick Up 11 | 1 . 10 Fast Attach 18 | 7 1 10 Attach 3 | . 1 2 Detach 7 | . 1 6 Swap 3 | . 3 . Drop 12 | . . 12 Fire 78 | 7 50 21 Melee . | . . . Ram 14 | . . 14 Kick . | . . . Crush . | . . . Escape Stasis . | . . . Rewire . | . . . Trap . | . . . Miscellaneous . | . . . Route ------- -11/Scrapyard -10/Materials -9/Materials History --------- Turn | Location | Event 4 | -11/Scrapyard | Discovered new exit (range 16) 123 | -11/Scrapyard | Entered Materials 301 | -10/Materials | Build established: Mutant 382 | -10/Materials | Core integrity fell below 50% 405 | -10/Materials | Lost 3 parts (1p1u1w) 405 | -10/Materials | Discovered new exit (range 6) 416 | -10/Materials | Entered another Materials area 416 | -9/Materials | Evolved 2 slots: Utility x2 547 | -9/Materials | Core integrity fell below 50% 735 | -9/Materials | Core integrity fell below 20% 750 | -9/Materials | Destroyed by Y-45 Defender with Heavy Assault Rifle Last Messages --------------- 00690_ Dropped Faulty Prc. Beam Rifle. 00691_ Dropped Lgt. Armor Plating. 00691_ Acquired Faulty Prc. Beam Rifle. 00692_ Dropped Faulty Prc. Beam Rifle. 00693_ Dropped Lgt. Cannon. 00694_ Acquired Prc. Beam Rifle. 00701_ Acquired Imp. Targeting Computer. 00702_ K-01 Serf cleans the Fusion Modulator. 00704_ R-06 Scavenger collects Lgt. Cannon. 00711_ W-16 Scout destroyed. 00714_ Acquired 25 matter. 00715_ Acquired Sensor Array. 00722_ Flight Unit destroyed. 00724_ G-34 Mercenary suffers critical hit (Burn). 00726_ Heat Sink melted. 00726_ Ion Engine melted. 00726_ G-34 Mercenary destroyed. 00728_ Flight Unit destroyed. 00744_ Sensor Array destroyed. 00748_ K-01 Serf collects debris. Map ----- +----------------------------------------------------+ | ??????????????????????????????????????? | | ??????????????????????????????????????? | | ??????????????????????????????????????? | | ??????????????????????????????????????? | | ??????????????????????????????????????? | | ??????????????????????????????????????? | | ??????????????????????????????????????? | | ??????????????????????????????????????? | | ??????????????????????????????????????? | | ??????????????????????????????????????? | | ??????????????????????????????????????? | | ??????????????#######?????????????????? | | ??????????????# #?????????????????? | | ??????????????# ##########????????? | | ??????????????# # #????????? | | ??????????????# #""""" ########## | | ??????????????# #""""" + | | ??????????????# #""""" ########## | | ??????????????# #""""" #????????? | | ??????????????# #""""" ] #????????? | | ??????????????# #""""" #????????? | | ??????????????# #""""" #????????? | | ??????????????# # #????????? | | ???????????????? ####+#####????????? | | ???????####+######+### %= #??????????? | | ????# @ Y #######?#### | | ????# T # ??# | | ????# k Y[k # ??# | | ????# ##########+### # ???# | | ????# ????## ## ## ???# " | | ??????????# """ "" ## #? ????# " | | ???????????# """ Y" ## #? ????#! | | ???????????# """ "" ## ###+####?# | | ???????????# ## ###### | | ???????????# + | | ???????????# ## ###### | | ???????????# [ ######## ###??? | | ???????????###########??????# #??? | | ????????????????????????????#! !!!!#??? | | ????????????????????????????#[[!!!!#??? | | ????????????????????????????########??? | | ??????????????????????????????????????? | | ??????????????????????????????????????? | | ??????????????????????????????????????? | | | | | | | | | | | | | +----------------------------------------------------+ Best States ------------- Heat Dissipation 28 Energy Generation 10 Energy Capacity 250 Matter Stores 300 Matter Capacity 300 Sight Range 18 Robot Scan Range 14 Terrain Scan Range 16 Terrain Scan Density 10 Armor Coverage 150 Evasion (%) 62 Targeting Accuracy 6 Item Schematics ----------------- Aluminum Leg | -9/Materials | Scanalyzed Robot Schematics ------------------ None Fabricated ------------ Nothing Alien Tech Used ----------------- None Achievements -------------- None Challenges ------------ None Game ------ Seed SpikedPhasingTerrabomb Manual? 0 Play Time 00:18:21 Cumulative 9.8 hours Start 2024.04.01 @ 18:38:04 End 2024.04.01 @ 19:00:28 Sessions 1 Manual Loads 0 Difficulty Rogue Special Mode None Game No. 26 Rogue 24 Adventurer 2 Explorer 0 Win Type - Total 0 Types 0/0/0/0/0/0/0/0/0 Lore% 14 Gallery% 16 Achievement% 16 Wizard Run 0 Options --------- Layout 0 ASCII 0 Keyboard 1 Movement Arrows Keybinds 0 Fullscreen 2 Font 18/SmallcapsGlow Map View 76x50 Zoom Use 0% Tactical HUD 1 Map Filters NONE Filters NONE Steam 1 RUN: 3e9b6fa6-98b8-4408-be77-4cc69bfd30d4